bitfinex/quotes_BTCUSD_20250303
["timestamp","ask_amount","ask_price","bid_price","bid_amount"]
[1741013031571,4e-05,91188.0,91161.0,0.00079665]
[1741013032161,4e-05,91188.0,91164.0,0.219382]
[1741013032367,4e-05,91188.0,91165.0,0.00079686]
[1741013032874,4e-05,91188.0,91173.0,0.164521]
[1741013033069,4e-05,91188.0,91186.0,0.164497]
[1741013033373,0.0003442,91197.0,91174.0,0.01724897]
[1741013033374,0.0003442,91197.0,91188.0,0.0785]
[1741013033618,0.0003442,91197.0,91189.0,0.00079583]
[1741013033819,4e-05,91213.0,91212.0,0.164452]
[1741013034020,0.219127,91272.0,91212.0,0.164452]
[1741013034021,0.1,91318.0,91222.0,0.1]
[1741013034221,0.1,91318.0,91219.0,0.0444]
[1741013034222,0.004397,91301.0,91262.0,0.164361]
[1741013034441,0.004397,91301.0,91223.0,0.07639387]
[1741013034442,0.219078,91292.0,91261.0,0.0453]
[1741013034623,0.00426963,91289.0,91261.0,0.0453]
[1741013034823,0.00426963,91289.0,91261.0,0.209663]
[1741013035029,0.0023524,91289.0,91262.0,0.00079393]
[1741013035387,0.164358,91264.0,91261.0,0.0453]
[1741013035594,0.0023524,91289.0,91261.0,0.0453]
[1741013035797,0.0023524,91289.0,91273.0,0.164341]
[1741013036002,0.0023524,91289.0,91275.0,0.0764]
[1741013036208,0.00247244,91289.0,91276.0,0.00079252]
[1741013036616,0.00247244,91289.0,91262.0,0.00079246]
[1741013036821,0.164381,91252.0,91250.0,0.00112497]
[1741013037045,0.0023924,91289.0,91250.0,0.00112497]
[1741013037245,0.83291787,91288.0,91250.0,0.00112497]
[1741013037473,0.219089,91287.0,91250.0,0.00112497]
[1741013037677,0.0023924,91289.0,91250.0,0.00112497]
[1741013037882,0.01454085,91287.0,91232.0,0.00079434]
[1741013038107,0.27891725,91288.0,91232.0,0.00079467]
[1741013038108,0.3,91285.0,91232.0,0.00079467]
[1741013038312,0.0019178,91284.0,91232.0,0.00079467]
[1741013038512,0.831,91288.0,91232.0,0.0007946]
[1741013038711,0.00191769,91283.0,91232.0,0.0007946]
[1741013039191,0.00191769,91283.0,91231.0,0.0486]
[1741013039620,0.831,91288.0,91232.0,0.00079476]
[1741013039621,4e-05,91284.0,91232.0,0.00079476]
[1741013039750,0.00195771,91284.0,91233.0,0.164413]
[1741013039966,0.00195771,91284.0,91254.0,0.164376]
[1741013040163,4e-05,91284.0,91255.0,0.00079405]
[1741013040367,4e-05,91284.0,91234.0,1.07592465]
[1741013040571,4e-05,91284.0,91235.0,0.0007939]
[1741013040769,0.00195707,91284.0,91235.0,0.0007939]
[1741013040965,0.3,91274.0,91233.0,0.00079439]
[1741013041173,0.164335,91277.0,91257.0,0.164369]
[1741013041374,4e-05,91284.0,91258.0,0.00079407]
[1741013041616,4e-05,91284.0,91283.0,0.1239]
[1741013041790,4e-05,91284.0,91283.0,0.12469251]
[1741013041995,0.00251244,91289.0,91283.0,0.19741516]
[1741013042192,0.00251244,91289.0,91287.0,0.164315]
[1741013042395,0.00251244,91289.0,91288.0,0.00079218]
[1741013042640,0.00251244,91289.0,91287.0,0.16510818]
[1741013042843,0.00251244,91289.0,91288.0,0.01454085]
[1741013043014,0.0003428,91302.0,91301.0,0.164291]
[1741013043217,0.0003428,91302.0,91301.0,0.00075094]
[1741013043421,0.0003428,91302.0,91300.0,0.164292]
[1741013043624,0.0003428,91302.0,91301.0,0.00075137]
[1741013043832,0.164313,91289.0,91288.0,0.0003978]
[1741013044031,0.16623006,91289.0,91288.0,0.0003978]
[1741013044234,0.164313,91289.0,91288.0,0.0003978]
[1741013044437,0.164369,91258.0,91257.0,0.00112497]
[1741013044678,0.16628685,91258.0,91257.0,0.00112497]
[1741013045106,0.219141,91266.0,91257.0,0.00112497]
[1741013045261,0.0003828,91302.0,91243.0,0.0816]
[1741013045465,0.831,91301.0,91244.0,0.05531391]
[1741013045669,0.032973,91300.0,91245.0,0.5380539]
[1741013045863,0.0003828,91302.0,91265.0,0.164356]
[1741013045864,0.00039969,91266.0,91265.0,0.164356]
[1741013046064,0.0003828,91302.0,91301.0,0.164291]
[1741013046243,0.0003828,91302.0,91301.0,0.7977201]
[1741013046443,0.00225882,91355.0,91301.0,0.7977201]
[1741013046444,0.0003424,91355.0,91327.0,0.164244]
[1741013046625,0.0003424,91355.0,91340.0,0.164221]
[1741013046825,0.0003424,91355.0,91354.0,0.164196]
[1741013047068,0.0003424,91355.0,91354.0,0.701496]
[1741013047269,0.0003424,91355.0,91341.0,0.01529004]
[1741013047270,0.0003424,91355.0,91335.0,0.5373]
[1741013047477,0.164207,91348.0,91341.0,0.00074944]
[1741013047682,0.164207,91348.0,91322.0,0.00112497]
[1741013047683,0.0003424,91355.0,91322.0,0.00112497]
[1741013047881,0.00046238,91355.0,91322.0,0.00112497]
[1741013048160,0.00046238,91355.0,91354.0,0.164196]
[1741013048472,0.00201,91368.0,91367.0,0.164173]
[1741013048624,0.0003424,91373.0,91372.0,0.164164]
[1741013048829,0.0019144,91445.0,91393.0,0.164126]
[1741013048830,0.218714,91444.0,91393.0,0.164126]
[1741013049007,0.00201,91446.0,91393.0,0.701426]
[1741013049208,0.004389,91441.0,91418.0,0.164081]
[1741013049439,0.004389,91441.0,91418.0,0.5537081]
[1741013049766,0.00201,91446.0,91422.0,0.164074]
[1741013049946,0.00201,91446.0,91422.0,0.00074568]
[1741013050139,0.00201,91446.0,91445.0,0.0484]
[1741013050340,0.00201,91446.0,91445.0,0.04914518]
[1741013050541,0.00201,91446.0,91424.0,0.53804588]
[1741013050902,0.00201,91446.0,91416.0,0.0484]
[1741013050903,0.00241011,91446.0,91416.0,0.0484]
[1741013051011,0.00191365,91445.0,91403.0,0.00187225]
[1741013051233,0.00191408,91444.0,91403.0,0.00112497]
[1741013051442,0.828,91443.0,91404.0,0.0007478]
[1741013051733,0.00241011,91446.0,91405.0,0.5373]
[1741013051937,0.00241011,91446.0,91445.0,0.164033]
[1741013052130,0.0003424,91447.0,91445.0,0.701333]
[1741013052334,0.0003424,91447.0,91446.0,0.00074478]
[1741013052461,0.0003424,91447.0,91442.0,0.0491]
[1741013052654,0.0003424,91447.0,91443.0,0.00074637]
[1741013052901,0.0004,91459.0,91458.0,0.164009]
[1741013053099,0.0004,91459.0,91449.0,0.00074468]
[1741013053505,0.0004,91459.0,91457.0,0.16401]
[1741013053704,0.09244397,91503.0,91472.0,0.163984]
[1741013053875,0.09244397,91503.0,91472.0,0.70202811]
[1741013054093,0.09244397,91503.0,91473.0,0.3]
[1741013054297,0.09244397,91503.0,91498.0,0.163938]
[1741013054476,0.09244397,91503.0,91498.0,0.73199937]
[1741013054725,0.0202053,91504.0,91498.0,0.5373]
[1741013055298,0.0202053,91504.0,91498.0,0.701238]
[1741013055448,0.01748489,91515.0,91498.0,0.701238]
[1741013055449,0.0003416,91515.0,91514.0,0.163909]
[1741013055797,7e-05,91521.0,91514.0,0.588814]
[1741013056017,7e-05,91521.0,91519.0,0.163898]
[1741013056144,0.000342,91538.0,91519.0,0.163898]
[1741013056145,0.000342,91538.0,91520.0,0.53804183]
[1741013056358,0.000342,91538.0,91537.0,0.463868]
[1741013056557,0.000342,91538.0,91537.0,1.77709265]
[1741013056755,0.000342,91538.0,91526.0,0.5373]
[1741013056963,0.000342,91538.0,91527.0,0.00074203]
[1741013057162,0.000342,91538.0,91506.0,0.00112497]
[1741013057359,0.000342,91538.0,91495.0,0.0471]
[1741013057562,0.00191204,91537.0,91464.0,0.5373]
[1741013057762,0.5561118,91556.0,91555.0,0.163835]
[1741013058040,0.5561118,91556.0,91492.0,0.5]
[1741013058041,0.0004,91579.0,91547.0,0.53882869]
[1741013058268,0.0004,91579.0,91531.0,1.07592465]
[1741013058479,0.0004,91579.0,91532.0,0.53882881]
[1741013058697,0.0004,91579.0,91533.0,0.3]
[1741013058848,0.0004,91579.0,91551.0,0.218457]
[1741013059081,0.0004,91579.0,91534.0,0.03881626]
[1741013059082,0.0004,91579.0,91552.0,0.00152854]
[1741013059274,0.0004,91579.0,91537.0,0.00152865]
[1741013059505,0.0004,91579.0,91535.0,0.00152894]
[1741013059506,0.00392082,91578.0,91535.0,0.00152894]
[1741013059657,0.00392082,91578.0,91505.0,0.5373]
[1741013059658,0.00040004,91556.0,91508.0,0.03439701]
[1741013060071,0.55347969,91574.0,91508.0,0.00152901]
[1741013060273,0.00212994,91578.0,91508.0,0.00152901]
[1741013060473,0.3,91571.0,91506.0,0.13203028]
[1741013060677,0.3,91571.0,91477.0,0.5373]
[1741013060678,0.01454085,91568.0,91507.0,0.00152963]
[1741013060876,0.3,91553.0,91478.0,0.00152966]
[1741013061059,0.163934,91500.0,91478.0,0.00152966]
[1741013061262,0.3,91519.0,91468.0,0.00152999]
[1741013061462,0.3,91519.0,91464.0,0.00153018]
[1741013061938,0.1791,91518.0,91463.0,0.00353054]
[1741013062143,0.1,91516.0,91463.0,0.002]
[1741013062321,0.163998,91464.0,91463.0,0.002]
[1741013062522,0.0791,91518.0,91463.0,0.002]
[1741013062523,0.004388,91515.0,91463.0,0.002]
[1741013062702,0.163997,91465.0,91463.0,0.00240004]
[1741013062934,0.2755,91482.0,91463.0,0.00240004]
[1741013063266,0.01454085,91537.0,91463.0,0.00240004]
[1741013063468,0.1,91527.0,91464.0,0.00153025]
[1741013063673,0.57589677,91536.0,91465.0,0.00153047]
[1741013063891,0.555,91536.0,91465.0,0.00153047]
[1741013064067,0.163927,91504.0,91465.0,0.00153047]
[1741013064220,0.163928,91504.0,91465.0,0.00153047]
[1741013064424,0.2755,91536.0,91470.0,0.53901916]
[1741013064633,0.0496,91576.0,91467.0,0.0763]
[1741013064634,0.0496,91576.0,91490.0,0.43901916]
[1741013064839,0.1,91568.0,91491.0,0.00152938]
[1741013065035,0.163891,91524.0,91491.0,0.00152938]
[1741013065234,0.3,91542.0,91491.0,0.00152938]
[1741013065444,0.3,91543.0,91472.0,0.00152991]
[1741013065643,0.3,91543.0,91472.0,0.57611781]
[1741013065880,0.1,91500.0,91473.0,0.3]
[1741013066073,0.1,91500.0,91490.0,0.43901916]
[1741013066245,0.1,91500.0,91472.0,0.00112249]
[1741013066467,0.10011976,91500.0,91472.0,0.00112249]
[1741013066666,0.10011976,91500.0,91473.0,0.218643]
[1741013066869,0.002,91536.0,91500.0,0.163934]
[1741013067069,0.0021197,91536.0,91501.0,0.00152936]
[1741013067446,0.0021197,91536.0,91508.0,0.163919]
[1741013067719,0.0021197,91536.0,91509.0,0.00152955]
[1741013067833,0.0021197,91536.0,91534.0,0.163871]
[1741013068039,0.0021197,91536.0,91535.0,0.57706661]
[1741013068446,0.0021197,91536.0,91535.0,0.2021085]
[1741013068643,0.5,91550.0,91549.0,0.163846]
[1741013068778,0.5,91550.0,91536.0,0.00152891]
[1741013068779,0.5019719,91550.0,91536.0,0.00152891]
[1741013068980,0.5019719,91550.0,91548.0,0.163847]
[1741013069386,0.5019719,91550.0,91548.0,0.16537591]
[1741013069593,0.5019719,91550.0,91548.0,0.163848]
[1741013069858,0.5019719,91550.0,91549.0,0.01791379]
[1741013070062,0.5019719,91550.0,91549.0,0.0163848]
[1741013070302,0.5019719,91550.0,91548.0,0.163848]
[1741013070447,0.5019719,91550.0,91548.0,1.24130161]
[1741013070649,0.5019719,91550.0,91548.0,0.163848]
[1741013070890,0.5019719,91550.0,91548.0,0.16537691]
[1741013071028,0.5019719,91550.0,91548.0,0.163848]
[1741013071373,0.5019719,91550.0,91535.0,0.00040004]
[1741013071749,0.163868,91537.0,91535.0,0.00040004]
[1741013072167,0.01713987,91547.0,91535.0,0.00040004]
[1741013072494,0.5019719,91550.0,91535.0,0.00040004]
[1741013072903,0.5019719,91550.0,91548.0,0.163847]
[1741013073106,0.5019719,91550.0,91549.0,0.0163847]
[1741013073243,0.5019719,91550.0,91549.0,0.163846]
[1741013073648,0.5019719,91550.0,91548.0,0.163847]
[1741013073867,0.5019719,91550.0,91548.0,0.1653762]
[1741013074074,0.5,91600.0,91577.0,0.163796]
[1741013074279,1e-06,91579.0,91578.0,0.31454085]
[1741013074716,0.01170027,91591.0,91590.0,0.463773]
[1741013074903,0.01170027,91591.0,91578.0,0.163793]
[1741013075118,0.01170027,91591.0,91579.0,0.00152834]
[1741013075306,0.01170027,91591.0,91581.0,0.218385]
[1741013075510,0.01181999,91591.0,91547.0,0.3]
[1741013075714,0.01181999,91591.0,91549.0,0.01454085]
[1741013075885,0.01181999,91591.0,91540.0,0.43901916]
[1741013075886,0.01181999,91591.0,91550.0,0.00152835]
[1741013076289,0.01181999,91591.0,91582.0,0.163787]
[1741013076500,0.01181999,91591.0,91551.0,0.01454085]
[1741013076693,0.01181999,91591.0,91590.0,0.163773]
[1741013077005,0.01181999,91591.0,91589.0,0.163775]
[1741013077436,0.01181999,91591.0,91590.0,0.00152832]
[1741013077600,0.01181999,91591.0,91589.0,0.16530323]
[1741013077805,0.00046172,91591.0,91589.0,0.16530323]
[1741013079149,0.00046172,91591.0,91589.0,0.163775]
[1741013079498,0.00046172,91591.0,91555.0,1.07592465]
[1741013079701,0.5,91600.0,91599.0,0.163757]
[1741013079881,0.5,91600.0,91599.0,1.23968165]
[1741013080031,0.5,91600.0,91599.0,0.163757]
[1741013080233,0.5,91600.0,91599.0,0.1652851]
[1741013080462,0.5,91600.0,91599.0,0.163757]
[1741013080861,0.097437,91600.0,91599.0,0.17829785]
[1741013081066,0.097437,91600.0,91586.0,0.218373]
[1741013081231,0.097437,91600.0,91599.0,0.163757]
[1741013081645,0.097437,91600.0,91596.0,0.218349]
[1741013081868,0.097437,91600.0,91597.0,0.00152815]
[1741013082073,0.097437,91600.0,91584.0,0.00152819]
[1741013082278,0.097437,91600.0,91564.0,0.00152828]
[1741013082496,0.3,91599.0,91539.0,1.07592465]
[1741013082664,0.097437,91600.0,91506.0,0.2238]
[1741013082665,0.3,91595.0,91540.0,0.00152868]
[1741013082865,0.3,91595.0,91527.0,1.07592465]
[1741013082866,0.3,91595.0,91580.0,0.00011972]
[1741013083115,0.01712678,91597.0,91580.0,0.00011972]
[1741013083472,0.163789,91581.0,91580.0,0.00011972]
[1741013083838,0.463789,91581.0,91580.0,0.00011972]
[1741013084039,0.163789,91581.0,91580.0,0.00011972]
[1741013084360,0.01713311,91581.0,91541.0,0.001529]
[1741013084551,0.01713311,91581.0,91477.0,0.1]
[1741013084552,0.163868,91537.0,91508.0,0.001529]
[1741013084849,0.3,91563.0,91550.0,1.180687]
[1741013085054,0.1323,91580.0,91550.0,1.180687]
[1741013085602,0.5535,91592.0,91550.0,1.180687]
[1741013085603,0.163796,91577.0,91551.0,0.00152907]
[1741013085803,0.00011958,91577.0,91551.0,0.00152907]
[1741013086006,0.00011958,91577.0,91576.0,0.163798]
[1741013086208,0.00011958,91577.0,91575.0,0.00152831]
[1741013086614,0.00011958,91577.0,91569.0,0.00152842]
[1741013086817,0.00011958,91577.0,91569.0,0.02352346]
[1741013087284,0.00011958,91577.0,91576.0,0.163798]
[1741013087499,5.8e-07,91577.0,91576.0,0.47986713]
[1741013087642,0.01169927,91642.0,91574.0,0.218401]
[1741013087643,0.01169927,91642.0,91599.0,0.17829785]
[1741013087842,0.01169927,91642.0,91599.0,0.16528492]
[1741013088330,0.0620553,91600.0,91599.0,0.16528492]
[1741013088496,0.0620553,91600.0,91599.0,0.163757]
[1741013088683,0.0620553,91600.0,91598.0,0.163757]
[1741013088880,0.0620553,91600.0,91584.0,0.00152824]
[1741013089261,0.0620553,91600.0,91535.0,0.0119957]
[1741013089464,0.01712917,91597.0,91551.0,0.00152858]
[1741013089663,0.163784,91584.0,91551.0,0.00152858]
[1741013089870,0.163766,91594.0,91551.0,0.00152858]
[1741013090089,0.01712917,91597.0,91551.0,0.00152858]
[1741013090279,0.01712917,91597.0,91551.0,0.30152858]
[1741013090479,0.01712917,91597.0,91550.0,1.18080658]
[1741013090681,0.0620553,91600.0,91552.0,0.218455]
[1741013090978,0.01712793,91591.0,91589.0,0.163774]
[1741013091200,0.01712793,91591.0,91553.0,0.00152844]
[1741013091926,0.0453,91590.0,91554.0,0.00152844]
[1741013092349,0.0453,91590.0,91550.0,1.180687]
[1741013092350,0.0453,91590.0,91551.0,0.00152876]
[1741013092756,0.0792,91588.0,91551.0,0.00152876]
[1741013092960,0.0792,91588.0,91550.0,1.18080658]
[1741013092961,0.163842,91552.0,91550.0,1.16270442]
[1741013093165,0.3463,91551.0,91550.0,0.98460442]
[1741013093325,0.4,91551.0,91550.0,0.66316507]
[1741013093509,0.4,91551.0,91476.0,0.02219435]
[1741013093510,0.463868,91537.0,91493.0,0.163945]
[1741013093697,0.463868,91537.0,91460.0,0.328012]
[1741013093698,0.463868,91537.0,91536.0,0.00057144]
[1741013093900,0.11713235,91581.0,91536.0,0.00057144]
[1741013094101,0.218421,91566.0,91536.0,0.00057144]
[1741013094299,4e-05,91597.0,91536.0,0.00057144]
[1741013094300,0.01713923,91560.0,91536.0,0.00057144]
[1741013094713,0.01713923,91560.0,91537.0,0.00152921]
[1741013094970,0.01713923,91560.0,91536.0,0.00057144]
[1741013094971,4e-05,91537.0,91536.0,0.00057144]
[1741013095117,4e-05,91537.0,91536.0,0.29484044]
[1741013095318,0.163794,91579.0,91536.0,0.13097144]
[1741013095571,4e-05,91597.0,91536.0,0.13097144]
[1741013095718,4e-05,91597.0,91538.0,0.01454085]
[1741013095922,0.01135827,91586.0,91538.0,0.01454085]
[1741013096127,0.01135827,91586.0,91543.0,0.01454085]
[1741013096354,4e-05,91597.0,91543.0,0.01454085]
[1741013096573,4e-05,91597.0,91542.0,0.0464]
[1741013096967,0.00624355,91596.0,91542.0,0.0464]
[1741013097169,8e-05,91597.0,91543.0,0.00152862]
[1741013098012,0.3,91596.0,91543.0,0.00152862]
[1741013098334,8e-05,91597.0,91544.0,0.1262]
[1741013098555,8e-05,91597.0,91596.0,0.242762]
[1741013098924,8e-05,91597.0,91596.0,0.079]
[1741013099136,8e-05,91597.0,91596.0,0.242762]
[1741013099979,0.00019965,91597.0,91596.0,0.242762]
[1741013100198,0.00019965,91597.0,91596.0,0.079]
[1741013100387,0.00019965,91597.0,91596.0,0.24429017]
[1741013100587,0.00019965,91597.0,91596.0,0.079]
[1741013100782,0.01135827,91625.0,91596.0,0.079]
[1741013101098,0.01712444,91598.0,91596.0,0.079]
[1741013101303,0.21835,91596.0,91568.0,0.1269]
[1741013101505,4e-05,91597.0,91569.0,0.00152863]
[1741013101725,4e-05,91597.0,91596.0,0.163762]
[1741013101928,4e-05,91597.0,91584.0,0.00152802]
[1741013102131,0.01716368,91597.0,91568.0,0.1269]
[1741013102333,0.163838,91554.0,91545.0,0.077]
[1741013102535,0.01716368,91597.0,91545.0,0.077]
[1741013102536,0.3,91582.0,91545.0,0.077]
[1741013102741,0.01716368,91597.0,91545.0,0.077]
[1741013102742,0.3,91579.0,91545.0,0.077]
[1741013102963,0.01716368,91597.0,91545.0,0.077]
[1741013103096,4e-05,91597.0,91546.0,0.00152883]
[1741013103314,4e-05,91554.0,91553.0,0.163839]
[1741013103723,4e-05,91554.0,91545.0,0.077]
[1741013103958,4e-05,91554.0,91553.0,0.163839]
[1741013104147,0.0171292,91585.0,91553.0,0.00152893]
[1741013104357,4e-05,91597.0,91596.0,0.163762]
[1741013104601,4e-05,91597.0,91596.0,0.24119011]
[1741013104868,4e-05,91597.0,91596.0,0.239662]
[1741013105280,0.01135827,91643.0,91629.0,0.163703]
[1741013105486,0.01135827,91643.0,91596.0,0.0759]
[1741013105619,0.01135827,91643.0,91629.0,0.0463]
[1741013105823,0.00212965,91630.0,91629.0,0.0463]
[1741013106070,0.00212965,91630.0,91598.0,0.0463]
[1741013106264,0.00212965,91630.0,91599.0,0.00152788]
[1741013106634,0.00212965,91630.0,91596.0,0.0759]
[1741013106859,0.22039865,91630.0,91598.0,0.218345]
[1741013107036,0.16376,91597.0,91596.0,0.0759]
[1741013107236,0.1638,91575.0,91573.0,0.0809]
[1741013107460,0.01454085,91622.0,91537.0,0.00152837]
[1741013107461,0.1,91603.0,91553.0,0.0809]
[1741013107662,0.1,91597.0,91553.0,0.0809]
[1741013107861,0.3,91589.0,91532.0,0.0768]
[1741013108066,0.163866,91538.0,91532.0,0.0768]
[1741013108355,0.163866,91538.0,91491.0,0.00192913]
[1741013108356,0.3,91537.0,91536.0,0.05057144]
[1741013108606,0.3,91537.0,91536.0,4.4e-07]
[1741013108947,0.3,91537.0,91491.0,0.0004]
[1741013108948,0.1,91533.0,91488.0,0.07055991]
[1741013109152,0.5545,91537.0,91488.0,0.00011965]
[1741013109360,0.163954,91490.0,91488.0,0.00011965]
[1741013109576,0.5545,91537.0,91488.0,0.00011965]
[1741013109784,0.01190302,91547.0,91488.0,0.00011965]
[1741013109785,0.1,91547.0,91488.0,0.00011965]
[1741013109908,0.163953,91490.0,91488.0,0.00011965]
[1741013110115,0.163945,91494.0,91488.0,0.00011965]
[1741013110297,0.3,91517.0,91488.0,0.00011965]
[1741013110506,0.163952,91490.0,91488.0,0.00011965]
[1741013110703,0.3,91489.0,91488.0,0.00011965]
[1741013111735,0.1,91510.0,91488.0,0.00011965]
[1741013111736,0.1,91541.0,91488.0,0.00011965]
[1741013111936,0.1,91531.0,91488.0,0.00011965]
[1741013112255,0.3,91489.0,91488.0,0.00011965]
[1741013112474,0.3,91489.0,91488.0,6.5e-07]
[1741013112658,0.463979,91475.0,91463.0,0.002]
[1741013112877,0.163979,91475.0,91474.0,0.0001197]
[1741013113234,0.464034,91444.0,91443.0,0.09371672]
[1741013113435,0.464034,91444.0,91443.0,0.09383648]
[1741013113991,0.464045,91438.0,91437.0,0.002]
[1741013114190,0.464045,91438.0,91406.0,0.0001705]
[1741013114191,0.464092,91412.0,91406.0,0.0001705]
[1741013114401,0.464092,91412.0,91411.0,0.00280011]
[1741013114597,0.49284292,91412.0,91411.0,0.00280011]
[1741013114826,0.48125484,91412.0,91411.0,0.00280011]
[1741013115144,0.48125484,91412.0,91377.0,0.0492]
[1741013115145,0.218863,91381.0,91360.0,0.0807]
[1741013115350,0.218863,91381.0,91358.0,0.002]
[1741013115351,0.164164,91372.0,91358.0,0.002]
[1741013115755,0.464164,91372.0,91358.0,0.002]
[1741013116167,0.464187,91359.0,91358.0,0.002]
[1741013116318,0.464187,91359.0,91332.0,0.002]
[1741013116319,0.1,91354.0,91332.0,0.002]
[1741013116531,0.464225,91338.0,91332.0,0.002]
[1741013116732,0.464225,91338.0,91243.0,0.1]
[1741013116733,0.16428,91307.0,91293.0,0.00153322]
[1741013116931,0.16428,91307.0,91265.0,0.0765]
[1741013116932,0.74078,91307.0,91265.0,0.0765]
[1741013117359,0.164338,91275.0,91251.0,0.0004]
[1741013117555,0.29104085,91307.0,91252.0,0.219171]
[1741013117556,0.1,91304.0,91252.0,0.219171]
[1741013117718,0.05,91344.0,91251.0,0.0004]
[1741013117719,0.164323,91284.0,91254.0,0.00153413]
[1741013117923,0.282,91318.0,91254.0,0.00153413]
[1741013118162,0.20772,91343.0,91283.0,0.0491]
[1741013118316,0.4,91341.0,91306.0,0.00011995]
[1741013118520,0.46428,91307.0,91306.0,0.00011995]
[1741013118810,0.1,91337.0,91306.0,0.00011995]
[1741013119040,0.558,91342.0,91306.0,0.00011995]
[1741013119216,0.032956,91367.0,91306.0,0.00011995]
[1741013119425,0.032956,91367.0,91310.0,0.01454085]
[1741013119629,0.032956,91367.0,91311.0,0.00153249]
[1741013120010,0.09244397,91370.0,91311.0,0.00153249]
[1741013120695,0.09244397,91370.0,91314.0,0.219024]
[1741013120915,0.0094454,91367.0,91315.0,0.00153249]
[1741013121113,0.1,91366.0,91309.0,0.0495]
[1741013121609,0.164274,91311.0,91309.0,0.0495]
[1741013121734,0.3,91334.0,91309.0,0.0495]
[1741013121941,0.3,91334.0,91310.0,0.00153329]
[1741013122177,0.00201,91368.0,91309.0,0.0495]
[1741013122379,0.00201,91368.0,91310.0,0.001533]
[1741013123291,0.01135827,91365.0,91309.0,0.0495]
[1741013123496,0.20788,91364.0,91309.0,0.0495]
[1741013123669,0.3,91363.0,91309.0,0.0495]
[1741013123994,0.01135827,91365.0,91309.0,0.0495]
[1741013124372,0.3,91363.0,91310.0,0.00153292]
[1741013124572,0.3,91363.0,91309.0,0.0495]
[1741013124573,0.1,91362.0,91309.0,0.0495]
[1741013124777,0.164275,91310.0,91309.0,0.0495]
[1741013124937,0.164279,91308.0,91287.0,0.0808]
[1741013125358,0.3,91307.0,91287.0,0.0808]
[1741013125592,0.164279,91308.0,91288.0,0.00153372]
[1741013125836,0.164279,91308.0,91287.0,0.0808]
[1741013126079,0.164338,91275.0,91274.0,7e-05]
[1741013126342,0.4,91307.0,91251.0,0.0004]
[1741013126343,0.164376,91254.0,91251.0,0.0004]
[1741013126642,0.5595,91267.0,91253.0,0.00239969]
[1741013126866,0.032967,91326.0,91253.0,0.00239969]
[1741013127107,0.032967,91326.0,91253.0,0.00393349]
[1741013127108,0.1,91323.0,91253.0,0.00393349]
[1741013127352,0.1,91323.0,91253.0,0.00239969]
[1741013127353,0.328518,91319.0,91253.0,0.00239969]
[1741013127580,0.1,91337.0,91254.0,0.00153402]
[1741013127821,0.1,91314.0,91254.0,0.00153402]
[1741013128060,0.2,91328.0,91255.0,0.00153387]
[1741013128295,0.164348,91270.0,91253.0,0.00239969]
[1741013128537,0.3,91323.0,91254.0,0.00153392]
[1741013128771,0.3,91321.0,91254.0,0.00153366]
[1741013129010,0.3,91319.0,91254.0,0.045]
[1741013129251,0.01454085,91319.0,91254.0,0.045]
[1741013129486,0.07735409,91318.0,91255.0,0.00153392]
[1741013129727,0.559,91320.0,91255.0,0.00153392]
[1741013129971,0.133,91375.0,91255.0,0.00153392]
[1741013129972,0.21867827,91365.0,91271.0,0.1]
[1741013130450,0.21867827,91365.0,91285.0,0.0468]
[1741013130451,0.01135827,91365.0,91285.0,0.0468]
[1741013130713,0.3,91344.0,91285.0,0.0468]
[1741013130959,0.3,91361.0,91285.0,0.0468]
[1741013130960,0.4,91342.0,91285.0,0.0468]
[1741013131225,0.76524,91343.0,91285.0,0.04523513]
[1741013131524,0.76524,91343.0,91286.0,0.00153363]
[1741013131525,0.558,91343.0,91286.0,0.00153363]
[1741013131703,0.164318,91286.0,91285.0,0.0066144]
[1741013132116,0.464318,91286.0,91285.0,0.0066144]
[1741013132729,0.47885885,91286.0,91285.0,0.0066144]
[1741013132954,0.33172926,91286.0,91232.0,0.0787]
[1741013133130,0.464376,91254.0,91231.0,0.0001718]
[1741013133532,0.47891985,91252.0,91251.0,7e-07]
[1741013133699,0.464423,91228.0,91214.0,0.0001703]
[1741013134096,0.464446,91215.0,91214.0,0.0001703]
[1741013134320,0.464446,91215.0,91188.0,0.000171]
[1741013134321,0.31454085,91214.0,91205.0,2e-07]
[1741013134532,0.31454085,91214.0,91188.0,0.000171]
[1741013134533,0.464493,91189.0,91188.0,0.000171]
[1741013134736,1.10563825,91189.0,91188.0,0.000171]
[1741013134980,0.1,91229.0,91188.0,0.000171]
[1741013134981,0.1,91215.0,91188.0,0.000171]
[1741013135179,0.20632,91220.0,91188.0,0.00057069]
[1741013135180,0.164493,91189.0,91188.0,0.00057069]
[1741013135384,0.164533,91189.0,91188.0,0.00057069]
[1741013135824,0.17907385,91189.0,91188.0,0.00057069]
[1741013136053,0.3,91148.0,91114.0,0.0457]
[1741013136318,0.3,91151.0,91115.0,0.00153619]
[1741013136535,4e-05,91189.0,91115.0,0.00153619]
[1741013136894,4e-05,91189.0,91135.0,0.0456]
[1741013137095,0.1,91278.0,91209.0,0.164457]
[1741013137263,0.24881293,91285.0,91235.0,0.16441]
[1741013137264,0.34881293,91285.0,91235.0,0.16441]
[1741013137457,0.219167,91255.0,91235.0,0.16441]
[1741013137656,0.20564,91285.0,91235.0,0.16441]
[1741013137657,0.00240724,91236.0,91235.0,0.16441]
[1741013138124,0.00240724,91236.0,91220.0,0.43901916]
[1741013138323,0.00240724,91236.0,91234.0,0.164411]
[1741013138522,0.01135827,91267.0,91235.0,0.0499]
[1741013138782,0.01135827,91267.0,91261.0,0.164363]
[1741013138956,0.219128,91271.0,91240.0,0.43901916]
[1741013139138,0.219104,91281.0,91235.0,0.0499]
[1741013139340,0.5595,91269.0,91235.0,0.0499]
[1741013139600,0.3,91268.0,91209.0,0.0794]
[1741013139804,0.5595,91269.0,91210.0,0.44055392]
[1741013140007,0.5595,91269.0,91210.0,0.43901916]
[1741013140166,0.3,91268.0,91211.0,0.00153443]
[1741013140440,0.219114,91277.0,91262.0,0.164361]